fUST/lending_fUST_20260213
["ID","MTS","AMOUNT","RATE_DAILY","PERIOD"]
[405297526,1770965441238,-250.0,0.00037998,30]
[405297527,1770965441246,-500.0,0.00037998,30]
[405297528,1770965441255,-250.0,0.00037998,30]
[405297529,1770965441265,-287.72143159,0.00037998,30]
[405297530,1770965441273,-250.0,0.00037998,30]
[405297531,1770965441282,-250.0,0.00037998,30]
[405297532,1770965441290,-250.0,0.00037998,30]
[405297533,1770965441301,-250.0,0.00037998,30]
[405297534,1770965441310,-250.0,0.00037998,30]
[405297535,1770965441318,-250.0,0.00037998,30]
[405297536,1770965441327,-250.0,0.00037998,30]
[405297537,1770965441336,-250.0,0.00037998,30]
[405297538,1770965441345,-250.0,0.00037998,30]
[405297539,1770965441359,-250.0,0.00037998,30]
[405297540,1770965441368,-250.0,0.00037998,30]
[405297541,1770965441376,-250.0,0.00037998,30]
[405297542,1770965441386,-250.0,0.00037998,30]
[405297543,1770965441396,-250.0,0.00037998,30]
[405297544,1770965441405,-250.0,0.00037998,30]
[405297545,1770965441414,-250.0,0.00037998,30]
[405297546,1770965441424,-210.64892395,0.00037999,10]
[405297547,1770965441433,-160.0,0.00038,3]
[405297548,1770965441442,-160.0,0.00038,5]
[405297549,1770965441451,-121665.3299372,0.00038,2]
[405297550,1770965441691,-189427.55034491,0.00038,2]
[405297579,1770965445028,-4170.82039511,0.00024953,2]
[405297586,1770965445958,-829.17960489,0.00024953,2]
[405297587,1770965445968,-500.0,0.00035616,5]
[405297588,1770965445977,-170.82039511,0.0003589,5]
[405297592,1770965742170,303.10001603,0.000189,2]
[405297593,1770965742215,151.5500087,0.00019089,2]
[405297596,1770965938674,303.10001603,0.000189,2]
[405297597,1770965938702,302.58027932,0.00019089,2]
[405297599,1770965978622,1014.49588411,0.000235,2]
[405297600,1770966019121,459.592,0.00013273,2]
[405297601,1770966036476,5000.0,0.000235,2]
[405297602,1770966119233,-174.6335434,0.00024294,2]
[405297603,1770966119275,-3849.35197378,0.00024294,2]
[405297604,1770966345114,-570.0,0.0002381,2]
[405297605,1770966345135,-588.1294244,0.00024051,2]
[405297607,1770966408086,-207.62217842,0.00024051,2]
[405297608,1770966425086,-927.79895236,0.00024051,2]
[405297609,1770966428103,-534.60136762,0.00024051,2]
[405297610,1770966434079,-2741.8480772,0.00024051,2]
[405297611,1770966434106,-150.0,0.00024417,2]
[405297612,1770966434129,-201.03699781,0.00026417,2]
[405297613,1770966434151,-423.85811814,0.00031853,2]
[405297614,1770966444083,-150.0,0.0002589,2]
[405297615,1770966444107,-177.0,0.0002789,2]
[405297616,1770966444143,-163.87910061,0.0002989,2]
[405297617,1770966547157,-915.12851613,0.00024703,2]
[405297618,1770966547178,-613.19036556,0.00024953,2]
[405297619,1770966547199,-40.12089939,0.0002989,2]
[405297620,1770966551393,3048.08438246,0.00024953,2]
[405297621,1770966552079,-1679.91022216,0.00024953,2]
[405297660,1770966638219,-272.00539538,0.00024953,2]
[405297662,1770966638229,-1000.0,0.00031874,30]
[405297664,1770966638239,-500.0,0.00032954,7]
[405297666,1770966638249,-500.0,0.00032954,7]
[405297668,1770966638259,-500.0,0.00032954,7]
[405297670,1770966638269,-500.0,0.00032954,7]
[405297672,1770966638278,-500.0,0.00032954,7]
[405297674,1770966638288,-245.99460462,0.00032954,7]
[405297676,1770966638299,-254.00539538,0.00032954,7]
[405297678,1770966638310,-500.0,0.00032954,7]
[405297680,1770966638320,-500.0,0.00032954,7]
[405297682,1770966638329,-500.0,0.00032954,7]
[405297684,1770966638339,-395.72065238,0.00032954,7]
[405297686,1770966638349,-500.0,0.00032954,7]
[405297688,1770966638360,-274.94284636,0.00032954,7]
[405297690,1770966638370,-500.0,0.00032954,7]
[405297692,1770966638380,-500.0,0.00032954,7]
[405297694,1770966638390,-500.0,0.00032954,7]
[405297696,1770966638400,-500.0,0.00032954,7]
[405297698,1770966638410,-342.15593395,0.00032954,7]
[405297700,1770966638420,-500.0,0.00032954,7]
[405297702,1770966638429,-500.0,0.00032954,7]
[405297704,1770966638439,-300.0,0.00032954,3]
[405297706,1770966638448,-400.0,0.00032954,2]
[405297708,1770966638457,-1189.28788886,0.00032955,2]
[405297710,1770966638467,-3595.2223863,0.00032958,2]
[405297712,1770966638477,-956.5,0.00034482,30]
[405297714,1770966638487,-4805.0,0.00035,7]
[405297716,1770966638497,-500.0,0.00035174,2]
[405297718,1770966638507,-553.32023519,0.00035174,2]
[405297720,1770966638516,-418.0,0.00035254,2]
[405297722,1770966638526,-717.0,0.00035254,2]
[405297724,1770966638536,-560.0,0.00035409,2]
[405297726,1770966638545,-320.40834563,0.00035462,2]
[405297728,1770966638555,-231.415,0.00035616,42]
[405297730,1770966638565,-500.0,0.00035616,5]
[405297744,1770966638574,-683.11,0.00035616,5]
[405297750,1770966638743,-500.0,0.00035616,5]
[405297752,1770966638754,-582.33,0.00035616,5]
[405297754,1770966638763,-535.36710111,0.00035616,5]
[405297756,1770966638774,-1280.45,0.00035616,5]
[405297758,1770966638786,-500.0,0.00035616,5]
[405297760,1770966638796,-500.0,0.00035616,5]
[405297762,1770966638806,-500.0,0.00035616,2]
[405297764,1770966638818,-500.0,0.00035616,2]
[405297766,1770966638828,-500.0,0.00035616,5]
[405297768,1770966638837,-500.0,0.00035616,5]
[405297770,1770966638847,-548.82696978,0.00035889,2]
[405297772,1770966638856,-500.0,0.0003589,5]
[405297774,1770966638866,-361.97419249,0.0003589,5]
[405297976,1770966645628,-500.0,0.00035616,5]
[405297977,1770966645638,-321.13580751,0.0003589,5]
[405297978,1770966645648,-582.33,0.0003589,5]
[405297979,1770966645657,-1280.45,0.0003589,5]
[405297980,1770966645667,-500.0,0.0003589,5]
[405297981,1770966645676,-500.0,0.0003589,5]
[405297982,1770966645686,-500.0,0.0003589,2]
[405297983,1770966645696,-500.0,0.0003589,2]
[405297984,1770966645706,-500.0,0.0003589,5]
[405297985,1770966645716,-500.0,0.0003589,5]
[405297986,1770966645726,-500.0,0.0003589,5]
[405297987,1770966645735,-500.19,0.00035894,2]
[405297988,1770966645747,-173.0,0.00036,30]
[405297990,1770966645756,-235.78880993,0.00036143,2]
[405297991,1770966645765,-328.49642147,0.00036164,5]
[405297992,1770966645775,-268.4603158,0.00036164,5]
[405297999,1770966646211,-414.6496842,0.00036164,5]
[405298000,1770966646221,-582.33,0.00036164,5]
[405298001,1770966646231,-462.4003158,0.00036164,5]
[405298002,1770966646287,-7.00086003,0.00036164,5]
[405298003,1770966646907,-23.06913093,0.00036164,5]
[405298005,1770966694562,157.21098704,0.00013699,2]
[405298008,1770966906567,303.10001603,0.000189,2]
[405298009,1770966906633,303.10001607,0.00019089,2]
[405298010,1770966991457,501.98218665,0.00013273,2]
[405298011,1770967029469,500.0,0.00013699,2]
[405298012,1770967029517,1000.0,0.00014247,2]
[405298013,1770967029569,500.0,0.00014795,2]
[405298014,1770967042176,5000.0,0.000235,2]
[405298015,1770967043997,3149.99,0.000235,2]
[405298016,1770967063907,5000.0,0.000235,2]
[405298017,1770967085922,5000.0,0.000235,2]
[405298018,1770967107876,5000.0,0.000235,2]
[405298019,1770967158069,409.91665482,0.000235,2]
[405298020,1770967230154,387.02214474,0.000235,2]
[405298026,1770967297488,500.0,0.00013699,2]
[405298027,1770967297514,1121.97237761,0.00014247,2]
[405298028,1770967542132,-834.80729577,0.00024456,2]
[405298038,1770967642120,-471.44679966,0.00024456,2]
[405298039,1770967642143,-111.66708495,0.00024703,2]
[405298045,1770967760120,-819.96692239,0.00023969,2]
[405298046,1770967760142,-5000.0,0.00024211,2]
[405298047,1770967760161,-1162.00058217,0.00024456,2]
[405298048,1770967772110,-1361.52654515,0.00024456,2]
[405298049,1770967772135,-202.80489987,0.0002458,2]
[405298050,1770967772156,-798.0,0.00026574,2]
[405298051,1770967772181,-649.12843711,0.00026574,2]
[405298052,1770967772201,-396.1668645,0.0002739,7]
[405298053,1770967772222,-809.58933569,0.000275,2]
[405298054,1770967772242,-713.35092093,0.0003013,2]
[405298055,1770967772264,-165.46418914,0.00030137,2]
[405298056,1770967772284,-171.19553606,0.00030137,2]
[405298057,1770967772304,-240.14837927,0.00030137,2]
[405298058,1770967772326,-323.75401044,0.00030137,2]
[405298059,1770967772347,-185.18253682,0.0003049,9]
[405298096,1770967832300,-5000.0,0.00023969,2]
[405298097,1770967832310,-5000.0,0.00024211,2]
[405298098,1770967832319,-300.0,0.00024799,2]
[405298099,1770967832332,-270.05333545,0.000248,2]
[405298100,1770967832341,-270.05333543,0.000248,2]
[405298101,1770967832351,-420.0,0.00026871,2]
[405298102,1770967832361,-587.0,0.00029116,2]
[405298103,1770967832371,-138.57147362,0.0003049,9]
[405298104,1770967832381,-272.055717,0.0003053,2]
[405298105,1770967832391,-240.14837927,0.00030843,17]
[405298106,1770967832400,-323.75401044,0.00030843,17]
[405298107,1770967832411,-165.46418914,0.00030961,20]
[405298108,1770967832421,-323.75401044,0.00031196,25]
[405298109,1770967832431,-240.14837927,0.00031549,32]
[405298110,1770967832441,-323.75401044,0.00031549,32]
[405298111,1770967832450,-165.46418914,0.00031784,38]
[405298112,1770967832460,-323.75401044,0.00031902,40]
[405298113,1770967832470,-742.81808302,0.00031933,2]
[405298114,1770967832482,-240.14837927,0.00032255,48]
[405298115,1770967832492,-323.75401044,0.00032255,48]
[405298116,1770967832502,-165.46418914,0.00032608,56]
[405298117,1770967832513,-323.75401044,0.00032608,56]
[405298118,1770967832523,-7856.5057956,0.00032809,2]
[405298119,1770967832532,-240.14837927,0.00032961,63]
[405298120,1770967832541,-323.75401044,0.00032961,63]
[405298121,1770967832551,-323.75401044,0.00033314,71]
[405298122,1770967832560,-165.46418914,0.00033432,74]
[405298123,1770967832570,-240.14837927,0.00033667,79]
[405298124,1770967832579,-323.75401044,0.00033667,79]
[405298125,1770967832589,-323.75401044,0.0003402,86]
[405298126,1770967832599,-487.71815677,0.00034122,2]
[405298127,1770967832608,-150.71839111,0.00034122,2]
[405298128,1770967832617,-165.46418914,0.00034255,92]
[405298129,1770967832627,-240.14837927,0.00034373,94]
[405298130,1770967832637,-323.75401044,0.00034373,94]
[405298131,1770967832646,-228.4504638,0.00034699,2]
[405298132,1770967832656,-323.75401044,0.00034726,102]
[405298133,1770967832668,-500.0,0.00035,2]
[405298134,1770967832677,-500.0,0.00035,2]
[405298135,1770967832687,-500.0,0.00035,5]
[405298136,1770967832696,-762.56652133,0.00035079,2]
[405298141,1770967838276,-967.93500277,0.00024953,2]
[405298142,1770967838339,-4032.06499723,0.00024953,2]
[405298143,1770967838349,-4216.6652962,0.00035079,2]
[405298145,1770967841208,-19488.26138407,0.00035079,2]
[405298146,1770967841217,-2381.4112748,0.00035079,2]
[405298147,1770967841226,-3160.7673097,0.00035079,2]
[405298148,1770967841235,-171.19553606,0.00035079,110]
[405298149,1770967841245,-311.10749689,0.00035184,2]
[405298150,1770967841254,-655.079958,0.00035294,2]
[405298151,1770967841264,-350.18067666,0.00035616,2]
[405298152,1770967841273,-500.0,0.00035616,5]
[405298153,1770967841282,-597.72,0.00035616,5]
[405298154,1770967841292,-500.0,0.00035616,5]
[405298155,1770967841301,-500.0,0.00035616,5]
[405298156,1770967841311,-500.0,0.00035616,5]
[405298157,1770967841320,-500.0,0.00035616,5]
[405298158,1770967841329,-1153.22,0.00035616,5]
[405298159,1770967841338,-500.0,0.00035616,5]
[405298160,1770967841347,-500.0,0.00035616,5]
[405298161,1770967841357,-500.0,0.00035616,2]
[405298162,1770967841366,-500.0,0.00035616,2]
[405298163,1770967841375,-1683.85754081,0.00035887,2]
[405298164,1770967841384,-500.0,0.0003589,5]
[405298165,1770967841393,-597.72,0.0003589,5]
[405298166,1770967841401,-500.0,0.0003589,5]
[405298167,1770967841410,-500.0,0.0003589,5]
[405298168,1770967841418,-500.0,0.0003589,5]
[405298169,1770967841426,-500.0,0.0003589,5]
[405298170,1770967841435,-1153.22,0.0003589,5]
[405298171,1770967841443,-500.0,0.0003589,5]
[405298172,1770967841452,-500.0,0.0003589,5]
[405298173,1770967841461,-500.0,0.0003589,2]
[405298174,1770967841470,-500.0,0.0003589,2]
[405298175,1770967841479,-1500.0,0.000359,14]
[405298176,1770967841488,-661.65,0.0003598,10]
[405298177,1770967841498,-25053.092941,0.0003599,2]
[405298178,1770967841515,-4531.09590182,0.0003599,2]
[405298208,1770967846159,-270.05333543,0.000248,2]
[405298209,1770967846169,-500.0,0.00035616,5]
[405298210,1770967846178,-51556.37228565,0.0003599,2]
[405298213,1770967846418,-500.0,0.0003589,5]
[405298214,1770967846428,-6057.02210871,0.0003599,2]
[405298228,1770968108879,500.0,0.00013699,2]
[405298229,1770968239503,500.0,0.00013699,2]
[405298230,1770968239556,1000.0,0.00014247,2]
[405298231,1770968239614,505.70718368,0.00014795,2]
[405298233,1770968430331,500.0,0.00013699,2]
[405298234,1770968430383,1027.51701322,0.00014247,2]
[405298261,1770968750246,-689.90068372,0.00024255,2]
[405298268,1770968844087,-683.48648366,0.00024012,2]
[405298271,1770968848072,-861.60561926,0.00024012,2]
[405298281,1770968952093,-3454.90789708,0.00024012,2]
[405298282,1770968952115,-270.54034215,0.00024256,2]
[405298283,1770968952134,-273.01,0.000245,2]
[405298284,1770968952154,-182.0,0.000249,2]
[405298285,1770968952173,-208.43433454,0.00024979,2]
[405298286,1770968952193,-674.0,0.00026848,2]
[405298287,1770968952212,-401.5607608,0.0002948,2]
[405298288,1770968952231,-300.0,0.00029999,2]
[405298289,1770968952250,-300.0,0.00029999,2]
[405298290,1770968952269,-327.2802802,0.00029999,2]
[405298291,1770968952291,-486.82974401,0.00029999,2]
[405298292,1770968952310,-1060.46030799,0.0003,60]
[405298293,1770968952329,-94.56889867,0.0003,2]
[405298295,1770969009984,500.0,0.00013699,2]
[405298320,1770969032489,-5000.0,0.00024953,2]
[405298322,1770969032501,-166.66666666,0.00030037,2]
[405298324,1770969032512,-1259.33194913,0.00030868,120]
[405298326,1770969032523,-1013.3068187,0.00030868,120]
[405298329,1770969032540,-3.18636557,0.00030868,120]
[405298331,1770969032551,-500.0,0.0003102,7]
[405298333,1770969032562,-3492.79452271,0.00031776,2]
[405298433,1770969038673,-40.35153969,0.00024703,2]
[405299022,1770969045244,-2750.09981599,0.00024703,2]
[405299154,1770969046520,-2209.54864432,0.00024703,2]
[405299156,1770969046530,-23563.17409789,0.00031776,2]
[405299158,1770969046544,-1522.88237654,0.00032847,2]
[405299160,1770969046553,-233.392073,0.00032947,10]
[405299162,1770969046564,-185.0,0.00033,14]
[405299164,1770969046574,-1522.88237654,0.0003422,2]
[405299166,1770969046585,-185.0,0.00034521,30]
[405299168,1770969046595,-313.0,0.00034678,30]
[405299170,1770969046604,-5870.9846972,0.00035343,2]
[405299172,1770969046615,-2171.8813611,0.00035343,2]
[405299174,1770969046624,-2395.42065137,0.00035343,2]
[405299176,1770969046636,-2850.48244723,0.00035343,2]
[405299178,1770969046645,-157.3653381,0.00035343,2]
[405299180,1770969046655,-5226.39683794,0.00035343,2]
[405299182,1770969046664,-727.56636903,0.00035516,2]
[405299184,1770969046674,-303.69682518,0.00035616,5]
[405299188,1770969046696,-202.53068406,0.00035616,5]
[405299190,1770969046705,-500.0,0.00035616,5]
[405299192,1770969046714,-506.53646448,0.00035616,5]
[405299194,1770969046724,-500.0,0.00035616,2]
[405299196,1770969046734,-500.0,0.00035616,5]
[405299198,1770969046743,-500.0,0.00035616,5]
[405299200,1770969046752,-500.0,0.00035616,5]
[405299202,1770969046761,-547.91,0.00035616,5]
[405299203,1770969046771,-500.0,0.00035616,5]
[405299205,1770969046780,-500.0,0.00035616,5]
[405299207,1770969046790,-427.41297505,0.00035616,5]
[405299862,1770969959167,-150.0,0.00025353,2]
[405299863,1770969959194,-176.8,0.000255,2]
[405299864,1770969959222,-177.0,0.00027353,2]
[405299865,1770969959244,-229.10385805,0.00028512,2]
[405299866,1770969959267,-267.15257228,0.00029353,2]
[405299867,1770969959290,-111.25012001,0.00029999,2]
[405299882,1770970032141,-3825.25693932,0.00024953,2]
[405299885,1770970036099,-549.48987923,0.00024953,2]
[405299886,1770970051088,-490.87910061,0.00024953,2]
[405299887,1770970079694,157.98,0.00013986,7]
[405299888,1770970080014,157.97,0.00013986,7]
[405299892,1770970159078,-1341.65983921,0.00024456,2]
[405299893,1770970159100,-150.0,0.0002458,2]
[405299894,1770970159121,-946.31411935,0.00024703,2]
[405299895,1770970159142,-134.37408084,0.00024953,2]
[405299896,1770970159164,-177.0,0.0002658,2]
[405299897,1770970159187,-204.0,0.0002858,2]
[405299898,1770970159208,-1200.0,0.00029999,2]
[405299899,1770970159229,-300.0,0.00029999,2]
[405299900,1770970159250,-1334.78634715,0.0003,2]
[405299901,1770970167888,3759.33,0.00016,10]
[405299931,1770970231596,-1200.0,0.00029699,2]
[405299932,1770970231605,-5000.0,0.000297,2]
[405299933,1770970231615,-300.0,0.00029999,2]
[405299934,1770970231624,-500.0,0.00029999,2]
[405299935,1770970231634,-19252.21365285,0.0003,2]
[405299936,1770970231644,-1701.974508,0.00030137,15]
[405299937,1770970231653,-1248.0,0.00030447,7]
[405299938,1770970231663,-231.0,0.0003058,2]
[405299939,1770970231674,-10000.0,0.00030915,2]
[405299940,1770970231683,-1636.00563828,0.00031373,2]
[405299941,1770970231692,-2590.3436181,0.00031473,2]
[405299942,1770970231701,-2144.1757875,0.00031473,2]
[405299943,1770970231711,-1602.2928722,0.00031473,2]
[405299944,1770970231720,-1431.6973347,0.00031764,2]
[405299945,1770970231730,-742.81808302,0.00031999,2]
[405299946,1770970231739,-600.0,0.00032155,3]
[405299947,1770970231748,-420.0,0.00032332,2]
[405299948,1770970231758,-1381.227073,0.00032431,2]
[405299949,1770970231767,-730.02536511,0.00032954,3]
[405299950,1770970231776,-1636.00563826,0.00032957,2]
[405299951,1770970231785,-185.0,0.00033,14]
[405299952,1770970231795,-250.82192618,0.00033304,2]
[405299953,1770970231804,-1381.227073,0.00033796,2]
[405299954,1770970231814,-300.0,0.00034049,2]
[405299955,1770970231824,-1636.00563826,0.00034541,2]
[405299956,1770970231833,-936.0,0.00034678,30]
[405299957,1770970231843,-269.0,0.00034847,2]
[405299958,1770970231852,-3007.95,0.00035,2]
[405299959,1770970231861,-469.89613762,0.00035039,2]
[405299960,1770970231871,-29041.3450444,0.00035043,2]
[405299961,1770970231881,-626.378,0.00035043,31]
[405299962,1770970231890,-626.378,0.00035043,31]
[405299963,1770970231902,-626.378,0.00035043,31]
[405299964,1770970231912,-626.378,0.00035043,31]
[405299965,1770970231923,-737.24,0.0003516,7]
[405299966,1770970231935,-1381.227073,0.00035162,2]
[405299967,1770970231945,-1000.0,0.000353,5]
[405299968,1770970231955,-642.22,0.00035372,10]
[405299969,1770970231964,-311.28717568,0.00035383,2]
[405299970,1770970231975,-553.08335033,0.00035383,2]
[405299971,1770970231984,-995.55003059,0.00035383,2]
[405299972,1770970231995,-1769.86672104,0.00035383,2]
[405299973,1770970232005,-2765.41675163,0.00035383,2]
[405299974,1770970232013,-3982.20012234,0.00035383,2]
[405299975,1770970232023,-194.85821927,0.00035383,2]
[405299976,1770970232032,-300.36330968,0.00035383,2]
[405299977,1770970232041,-540.65395743,0.00035383,2]
[405299978,1770970232050,-961.16259099,0.00035383,2]
[405299979,1770970232059,-1501.81654842,0.00035383,2]
[405299980,1770970232069,-2162.61582973,0.00035383,2]
[405299981,1770970232078,-616.48768898,0.00035616,5]
[405299982,1770970232087,-500.0,0.00035616,5]
[405299983,1770970232096,-500.0,0.00035616,2]
[405299984,1770970232106,-500.0,0.00035616,2]
[405299985,1770970232115,-512.05036607,0.00035616,5]
[405299986,1770970232125,-151.0,0.00035616,31]
[405299987,1770970232135,-151.0,0.00035616,31]
[405299988,1770970232144,-365.84660707,0.00035616,5]
[405299989,1770970232153,-525.08,0.00035616,5]
[405299990,1770970232162,-500.0,0.00035616,5]
[405299991,1770970232171,-500.0,0.00035616,5]
[405299992,1770970232182,-219.19235016,0.00035616,5]
[405299993,1770970232191,-536.04230063,0.00035616,5]
[405299994,1770970232200,-500.0,0.00035616,5]
[405299995,1770970232210,-500.0,0.00035616,5]
[405299996,1770970232219,-626.378,0.00035616,31]
[405299997,1770970232229,-626.378,0.00035616,31]
[405299998,1770970232240,-626.378,0.00035616,31]
[405299999,1770970232249,-626.378,0.00035616,31]
[405300000,1770970232259,-1271.12,0.00035616,5]
[405300001,1770970232269,-500.0,0.00035616,5]
[405300002,1770970232279,-600.0,0.00035699,30]
[405300003,1770970232288,-500.0,0.0003589,5]
[405300004,1770970232298,-500.0,0.0003589,2]
[405300005,1770970232307,-500.0,0.0003589,2]
[405300006,1770970232317,-525.08,0.0003589,5]
[405300007,1770970232326,-500.0,0.0003589,5]
[405300008,1770970232335,-500.0,0.0003589,5]
[405300009,1770970232344,-500.0,0.0003589,5]
[405300010,1770970232355,-500.0,0.0003589,5]
[405300011,1770970232365,-1271.12,0.0003589,5]
[405300012,1770970232374,-500.0,0.0003589,5]
[405300013,1770970232383,-336.0,0.000361,2]
[405300014,1770970232392,-300.0,0.000361,3]
[405300015,1770970232404,-1636.00563826,0.00036125,2]
[405300016,1770970232417,-500.0,0.00036164,5]
[405300017,1770970232429,-500.0,0.00036164,2]
[405300018,1770970232441,-500.0,0.00036164,2]
[405300019,1770970232454,-525.08,0.00036164,5]
[405300020,1770970232466,-500.0,0.00036164,5]
[405300021,1770970232478,-500.0,0.00036164,5]
[405300022,1770970232490,-500.0,0.00036164,5]
[405300023,1770970232500,-500.0,0.00036164,5]
[405300024,1770970232510,-626.378,0.00036164,31]
[405300025,1770970232521,-626.378,0.00036164,31]
[405300026,1770970232533,-626.378,0.00036164,31]
[405300027,1770970232543,-626.378,0.00036164,31]
[405300028,1770970232554,-1271.12,0.00036164,5]
[405300029,1770970232564,-500.0,0.00036164,5]
[405300030,1770970232577,-168.0,0.00036185,2]
[405300031,1770970232589,-151.0,0.000363,31]
[405300032,1770970232601,-151.0,0.000363,31]
[405300033,1770970232612,-780.0,0.000363,2]
[405300034,1770970232625,-510.1591,0.0003639,2]
[405300035,1770970232636,-2000.0,0.000364,14]
[405300036,1770970232648,-710.0,0.000364,11]
[405300037,1770970232659,-2404.75,0.00036437,120]
[405300038,1770970232670,-323.83086606,0.00036438,5]
[405300039,1770970232682,-500.0,0.00036438,2]
[405300040,1770970232695,-500.0,0.00036438,2]
[405300041,1770970232706,-525.08,0.00036438,5]
[405300042,1770970232718,-500.0,0.00036438,5]
[405300043,1770970232729,-500.0,0.00036438,5]
[405300044,1770970232740,-500.0,0.00036438,5]
[405300045,1770970232751,-500.0,0.00036438,5]
[405300046,1770970232761,-626.378,0.00036438,31]
[405300047,1770970232772,-626.378,0.00036438,31]
[405300048,1770970232785,-626.378,0.00036438,31]
[405300049,1770970232797,-626.378,0.00036438,31]
[405300050,1770970232808,-1271.12,0.00036438,5]
[405300051,1770970232818,-500.0,0.00036438,5]
[405300052,1770970232829,-1381.227073,0.00036527,2]
[405300053,1770970232840,-2000.0,0.00036603,2]
[405300054,1770970232851,-5420.21683319,0.00036679,2]
[405300055,1770970232863,-2943.56043491,0.00036679,2]
[405300056,1770970232875,-500.0,0.00036712,2]
[405300057,1770970232887,-375.08994,0.00036712,2]
[405300058,1770970232900,-151.0,0.00036712,31]
[405300059,1770970232915,-199.988195,0.00036712,31]
[405300060,1770970232927,-525.08,0.00036712,5]
[405300061,1770970232936,-500.0,0.00036712,5]
[405300062,1770970232947,-500.0,0.00036712,5]
[405300063,1770970232956,-500.0,0.00036712,5]
[405300064,1770970232966,-500.0,0.00036712,5]
[405300065,1770970232977,-1271.12,0.00036712,5]
[405300066,1770970232990,-500.0,0.00036712,5]
[405300067,1770970233001,-231.44121993,0.0003686,2]
[405300068,1770970233011,-2000.0,0.000369,14]
[405300069,1770970233023,-477.46,0.00036976,3]
[405300070,1770970233033,-500.0,0.00036986,2]
[405300071,1770970233044,-525.08,0.00036986,5]
[405300072,1770970233055,-500.0,0.00036986,5]
[405300073,1770970233066,-500.0,0.00036986,5]
[405300074,1770970233078,-500.0,0.00036986,5]
[405300075,1770970233089,-500.0,0.00036986,5]
[405300076,1770970233101,-626.378,0.00036986,31]
[405300077,1770970233111,-626.378,0.00036986,31]
[405300078,1770970233123,-626.378,0.00036986,31]
[405300079,1770970233135,-626.378,0.00036986,31]
[405300080,1770970233146,-1271.12,0.00036986,5]
[405300081,1770970233157,-500.0,0.00036986,5]
[405300082,1770970233168,-12802.41676282,0.0003699,2]
[405300083,1770970233179,-151.0,0.0003699,31]
[405300084,1770970233191,-108.40540138,0.0003699,2]
[405300114,1770970237706,-535.18,0.00035372,10]
[405300116,1770970237717,-401.75369862,0.0003699,2]
[405300119,1770970237728,-2000.0,0.00036998,120]
[405300121,1770970237740,-200.0,0.00036998,10]
[405300123,1770970237750,-214.05360635,0.00036999,10]
[405300125,1770970237761,-1647.89308597,0.00036999,3]
[405300128,1770970237779,-513.83067641,0.00036999,3]
[405300131,1770970237804,-2402.56949706,0.00036999,3]
[405300134,1770970237816,-3031.12432062,0.00036999,3]
[405300347,1770970239909,-1090.17782964,0.00036603,2]
[405300945,1770970245976,-151.0,0.00034847,31]
[405300947,1770970245986,-308.80994748,0.00035616,2]
[405302403,1770970591152,150.0,0.00021918,2]
[405302404,1770970591212,303.33386046,0.00022466,2]
[405302405,1770970671987,19230.40714897,0.0002349,2]
[405302407,1770970807179,500.0,0.00013699,2]
[405302410,1770971158158,-862.45722122,0.00024456,2]
[405302411,1770971208434,101793.8881,0.000235,2]
[405302412,1770971230136,-579.75148407,0.00023969,2]
[405302413,1770971232156,500.0,0.00013699,2]
[405302414,1770971232193,500.0,0.00014247,2]
[405302415,1770971236070,-767.32963648,0.00023969,2]
[405302416,1770971244189,-3652.91887945,0.00023969,2]